[Event "VII Totalizator Sportowy 2022"]
[Site "Bydgoszcz"]
[Date "2022.06.29"]
[Round "5.22"]
[White "Dzhuguryan, Tygran"]
[Black "Zaninotto, Franco"]
[Result "1-0"]
[ECO "D41"]
[WhiteElo "2203"]
[BlackElo "2069"]
[Annotator "NA RC"]
[PlyCount "137"]
[EventDate "2022.06.25"]
[EventType "swiss"]
[EventCountry "POL"]
[SourceTitle "playchess.com"]
[Source "ChessBase"]
[SourceQuality "1"]
[TimeControl "40/5400+30:1800+30"]

1. d4 {[%emt 0:00:03]} d5 {[%emt 0:00:32]} 2. Nf3 {[%emt 0:00:08]} Nf6 {[%emt 0:00:06]} 3. c4 {[%emt 0:00:03]} e6 {[%emt 0:00:14]} 4. Nc3 {[%emt 0:00:33]} c5 {[%emt 0:00:12]} 5. cxd5 {[%emt 0:01:10]} Nxd5 {[%emt 0:00:08]} 6. e4 {[%emt 0:01:25]} Nxc3 {[%emt 0:00:07]} 7. bxc3 {[%emt 0:00:04]} cxd4 {[%emt 0:00:04]} 8. cxd4 {[%emt 0:00:05]} Bb4+ {[%emt 0:00:05]} 9. Bd2 {[%emt 0:00:12]} Bxd2+ {[%emt 0:00:05]} 10. Qxd2 {[%emt 0:00:03]} O-O {[%emt 0:00:08]} 11. Bc4 {[%emt 0:00:23]} Nd7 {[%emt 0:00:05]} 12. O-O {[%emt 0:00:24]} b6 {[%emt 0:00:04]} 13. Rad1 {[%emt 0:07:14]} Bb7 {[%emt 0:00:30]} 14. Rfe1 {[%emt 0:00:53]} Rc8 {[%emt 0:00:12]} 15. Bd3 {[%emt 0:00:45]} Re8 {[%emt 0:04:59]} 16. h3 {[%emt 0:07:14]} Nf6 {[%emt 0:00:52]} 17. Qf4 {[%emt 0:00:59]} Qc7 {[%emt 0:00:18]} 18. Qh4 {[%emt 0:00:17]} h6 {[%emt 0:02:14]} 19. Re3 {[%emt 0:01:28]} Qe7 {[%emt 0:05:11]} 20. Qf4 {[%emt 0:02:40]} Nh5 {[%emt 0:11:28]} 21. Qg4 {[%emt 0:01:48]} Nf6 {[%emt 0:00:30]} 22. Qh4 {[%emt 0:08:08]} Nd7 {[%emt 0:06:27]} 23. Qxe7 {[%emt 0:02:37]} Rxe7 {[%emt 0:00:10]} 24. Kf1 {[%emt 0:04:48]} Kf8 {[%emt 0:07:35]} 25. Ke1 {[%emt 0:03:31]} Nf6 {[%emt 0:09:50]} 26. Ng1 {[%emt 0:13:42]} Rec7 {[%emt 0:04:34]} 27. Ne2 {[%emt 0:00:13]} Ne8 {[%emt 0:05:50]} 28. f3 {[%emt 0:06:20]} Nd6 {[%emt 0:06:50]} 29. Bb1 {[%emt 0:00:13]} Nc4 {[%emt 0:07:50]} 30. Rb3 {[%emt 0:00:24]} Na5 {[%emt 0:01:11]} 31. Ra3 {[%emt 0:00:59]} Rd8 {[%emt 0:08:24]} 32. Bd3 {[%emt 0:02:08]} Rdc8 {[%emt 0:03:16]} 33. h4 {[%emt 0:01:43]} Ke7 {[%emt 0:04:36]} 34. Kf2 {[%emt 0:01:21]} Kf8 {[%emt 0:00:33]} 35. Ke3 {[%emt 0:00:36]} Ke7 {[%emt 0:00:28]} 36. g4 {[%emt 0:01:50]} g6 {[%emt 0:02:20]} 37. f4 {[%emt 0:05:45]} f6 {[%emt 0:03:03]} 38. Rg1 {[%emt 0:01:07]} Kf7 {[%emt 0:01:31]} 39. Ra4 {[%emt 0:01:38]} Ba8 {[%emt 0:01:55]} 40. e5 {[%emt 0:00:00]} Bd5 {[%emt 0:00:00]} 41. exf6 {[%emt 0:01:55]} Nc4+ {[%emt 0:11:10]} 42. Bxc4 {[%emt 0:00:06]} Bxc4 {[%emt 0:00:06]} 43. Nc3 {[%emt 0:01:20]} Kxf6 {[%emt 0:01:12]} 44. g5+ {[%emt 0:01:34]} hxg5 {[%emt 0:02:23]} 45. Ne4+ {[%emt 0:02:14]} Ke7 {[%emt 0:00:12]} 46. Rxg5 {[%emt 0:00:42]} Bd5 {[%emt 0:01:40]} 47. Rxg6 {[%emt 0:00:35]} Bxe4 {[%emt 0:00:17]} 48. Kxe4 {[%emt 0:00:05]} Kf7 {[%emt 0:02:25]} 49. Rh6 {[%emt 0:00:22]} a5 {[%emt 0:02:47]} 50. Ke5 {[%emt 0:03:28]} Rc2 {[%emt 0:03:18]} 51. Rf6+ {[%emt 0:00:47]} Kg7 {[%emt 0:00:07]} 52. Rxe6 {[%emt 0:01:28]} Re2+ {[%emt 0:08:33]} 53. Kd6 {[%emt 0:00:14]} Rd8+ {[%emt 0:00:17]} 54. Ke7 {[%emt 0:00:22]} Rxe6+ {[%emt 0:00:46]} 55. Kxe6 {[%emt 0:00:02]} b5 {[%emt 0:00:11]} 56. Rxa5 {[%emt 0:00:24]} Rxd4 {[%emt 0:00:09]} 57. Ke5 {[%emt 0:00:52]} Rd2 {[%emt 0:00:24]} 58. Kf5 {[%emt 0:02:03]} b4 {[%emt 0:00:29]} 59. Ra7+ {[%emt 0:03:47]} Kh6 {[%emt 0:01:10]} 60. Ra8 {[%emt 0:00:25]} Rd3 {[%emt 0:01:31]} 61. Kf6 {[%emt 0:01:43]} Kh7 {[%emt 0:00:20]} 62. Ra7+ {[%emt 0:00:47]} Kh6 {[%emt 0:00:25]} 63. f5 {[%emt 0:01:33]} b3 {[%emt 0:00:06]} 64. axb3 {[%emt 0:00:53]} Rxb3 {[%emt 0:00:06]} 65. Kf7 {[%emt 0:00:21]} Rb8 {[%emt 0:02:55]} 66. f6 {[%emt 0:00:35]} Kh7 {[%emt 0:01:04]} 67. h5 {[%emt 0:00:22]} Kh8 {[%emt 0:02:11]} 68. Kg6 {[%emt 0:02:57]} Rg8+ {[%emt 0:00:23]} 69. Rg7 {[%emt 0:00:09]} 1-0

[Event "VII Totalizator Sportowy 2022"]
[Site "Bydgoszcz"]
[Date "2022.06.29"]
[Round "5.23"]
[White "Stolarczyk, Adam"]
[Black "Malczyk, Radoslaw"]
[Result "1/2-1/2"]
[ECO "D04"]
[WhiteElo "2125"]
[BlackElo "2067"]
[Annotator "NA RC"]
[PlyCount "57"]
[EventDate "2022.06.25"]
[EventType "swiss"]
[EventCountry "POL"]
[SourceTitle "playchess.com"]
[Source "ChessBase"]
[SourceQuality "1"]
[TimeControl "40/5400+30:1800+30"]

1. d4 {[%emt 0:00:12]} d5 {[%emt 0:00:22]} 2. Nf3 {[%emt 0:00:09]} Nf6 {[%emt 0:00:20]} 3. e3 {[%emt 0:00:10]} g6 {[%emt 0:00:14]} 4. Bd3 {[%emt 0:00:41]} Bg7 {[%emt 0:00:10]} 5. O-O {[%emt 0:01:23]} O-O {[%emt 0:00:08]} 6. Nbd2 {[%emt 0:04:38]} Nbd7 {[%emt 0:01:19]} 7. b3 {[%emt 0:03:35]} b6 {[%emt 0:00:58]} 8. Bb2 {[%emt 0:00:21]} Bb7 {[%emt 0:00:32]} 9. c4 {[%emt 0:01:37]} c5 {[%emt 0:00:23]} 10. Qe2 {[%emt 0:02:53]} cxd4 {[%emt 0:04:15]} 11. exd4 {[%emt 0:02:56]} dxc4 {[%emt 0:02:28]} 12. bxc4 {[%emt 0:00:15]} Nh5 {[%emt 0:00:33]} 13. Be4 {[%emt 0:02:44]} Bxe4 {[%emt 0:00:37]} 14. Qxe4 {[%emt 0:00:47]} Nc5 {[%emt 0:00:24]} 15. Qc2 {[%emt 0:02:26]} Ne6 {[%emt 0:00:18]} 16. Nb3 {[%emt 0:07:00]} Rc8 {[%emt 0:00:28]} 17. d5 {[%emt 0:02:30]} Bxb2 {[%emt 0:00:56]} 18. Qxb2 {[%emt 0:00:13]} Nef4 {[%emt 0:03:03]} 19. Ne5 {[%emt 0:02:22]} e6 {[%emt 0:08:24]} 20. dxe6 {[%emt 0:20:31]} Nxe6 {[%emt 0:05:25]} 21. Ng4 {[%emt 0:02:52]} Qg5 {[%emt 0:03:38]} 22. f3 {[%emt 0:04:08]} Rxc4 {[%emt 0:01:47]} 23. Rae1 {[%emt 0:07:55]} Nhg7 {[%emt 0:14:26]} 24. Nf6+ {[%emt 0:08:06]} Kh8 {[%emt 0:00:19]} 25. Nd7 {[%emt 0:03:17]} Rd8 {[%emt 0:06:31]} 26. Ne5 {[%emt 0:00:50]} Rc7 {[%emt 0:01:00]} 27. Nxf7+ {[%emt 0:00:18]} Rxf7 {[%emt 0:00:05]} 28. Rxe6 {[%emt 0:00:06]} Kg8 {[%emt 0:00:26]} 29. Re5 1/2-1/2

[Event "VII Totalizator Sportowy 2022"]
[Site "Bydgoszcz"]
[Date "2022.06.29"]
[Round "5.24"]
[White "Lambrecht, Tomasz"]
[Black "Kolodziejski, Piotr"]
[Result "1/2-1/2"]
[ECO "D10"]
[WhiteElo "1956"]
[BlackElo "2107"]
[Annotator "NA RC"]
[PlyCount "95"]
[EventDate "2022.06.25"]
[EventType "swiss"]
[EventCountry "POL"]
[SourceTitle "playchess.com"]
[Source "ChessBase"]
[SourceQuality "1"]
[TimeControl "40/5400+30:1800+30"]

1. d4 {[%emt 0:03:13]} d5 {[%emt 0:00:08]} 2. c4 {[%emt 0:00:26]} c6 {[%emt 0:00:07]} 3. Nc3 {[%emt 0:01:31]} Nf6 {[%emt 0:00:07]} 4. cxd5 {[%emt 0:04:25]} cxd5 {[%emt 0:00:11]} 5. Bf4 {[%emt 0:00:04]} Nc6 {[%emt 0:06:21]} 6. e3 {[%emt 0:00:19]} a6 {[%emt 0:02:10]} 7. Bd3 {[%emt 0:00:47]} g6 {[%emt 0:01:51]} 8. h3 {[%emt 0:05:29]} Bg7 {[%emt 0:07:56]} 9. Nf3 {[%emt 0:00:27]} b5 {[%emt 0:03:16]} 10. O-O {[%emt 0:00:36]} O-O {[%emt 0:02:26]} 11. Rc1 {[%emt 0:05:35]} Bb7 {[%emt 0:03:29]} 12. a4 {[%emt 0:06:46]} b4 {[%emt 0:03:17]} 13. Nb1 {[%emt 0:01:49]} Rc8 {[%emt 0:07:48]} 14. Nbd2 {[%emt 0:02:21]} Na5 {[%emt 0:03:48]} 15. Rxc8 {[%emt 0:24:18]} Qxc8 {[%emt 0:00:16]} 16. Qc1 {[%emt 0:08:54]} Qa8 {[%emt 0:18:03]} 17. Qb1 {[%emt 0:07:41]} Nd7 {[%emt 0:04:57]} 18. Rc1 {[%emt 0:02:39]} Rc8 {[%emt 0:02:14]} 19. Rc7 {[%emt 0:09:23]} Rxc7 {[%emt 0:00:30]} 20. Bxc7 {[%emt 0:00:01]} Nc6 {[%emt 0:01:09]} 21. Qc2 {[%emt 0:02:30]} Qc8 {[%emt 0:01:23]} 22. Bg3 {[%emt 0:00:19]} Bf8 {[%emt 0:06:51]} 23. h4 {[%emt 0:03:29]} h5 {[%emt 0:11:26]} 24. Ng5 {[%emt 0:01:59]} Kg7 {[%emt 0:02:30]} 25. Ndf3 {[%emt 0:02:49]} Na5 {[%emt 0:01:53]} 26. Qb1 {[%emt 0:01:07]} Qc6 {[%emt 0:03:20]} 27. b3 {[%emt 0:02:10]} e6 {[%emt 0:03:34]} 28. Nh3 {[%emt 0:01:25]} Bd6 {[%emt 0:01:11]} 29. Nf4 {[%emt 0:01:23]} Nf6 {[%emt 0:00:54]} 30. Ng5 {[%emt 0:00:30]} Ne4 {[%emt 0:00:23]} 31. Nxe4 {[%emt 0:00:49]} dxe4 {[%emt 0:00:04]} 32. Bc2 {[%emt 0:00:08]} Bc7 {[%emt 0:00:49]} 33. Qd1 {[%emt 0:00:30]} Bd8 {[%emt 0:01:05]} 34. Ne2 {[%emt 0:00:43]} Be7 {[%emt 0:00:42]} 35. Qb1 {[%emt 0:00:33]} f5 {[%emt 0:00:59]} 36. Be5+ {[%emt 0:00:05]} Bf6 {[%emt 0:00:29]} 37. Bxf6+ {[%emt 0:00:05]} Kxf6 {[%emt 0:00:04]} 38. Qb2 {[%emt 0:00:19]} Qd6 {[%emt 0:00:59]} 39. g3 {[%emt 0:00:30]} Bd5 {[%emt 0:00:19]} 40. Bd1 {[%emt 0:00:00]} Qc6 {[%emt 0:00:00]} 41. Kf1 {[%emt 0:05:36]} Nb7 {[%emt 0:02:45]} 42. Qd2 {[%emt 0:01:30]} a5 {[%emt 0:01:19]} 43. Nf4 {[%emt 0:04:44]} Nd6 {[%emt 0:05:12]} 44. Kg2 {[%emt 0:02:57]} Nc8 {[%emt 0:01:09]} 45. Kf1 {[%emt 0:04:50]} Ne7 {[%emt 0:00:08]} 46. Qb2 {[%emt 0:01:05]} Qc7 {[%emt 0:00:56]} 47. Ke1 {[%emt 0:01:10]} Kf7 {[%emt 0:02:06]} 48. Kd2 {[%emt 0:01:13]} 1/2-1/2

[Event "VII Totalizator Sportowy 2022"]
[Site "Bydgoszcz"]
[Date "2022.06.29"]
[Round "5.25"]
[White "Hulka, Valentyn"]
[Black "Sliwicki, Damian"]
[Result "0-1"]
[ECO "B72"]
[WhiteElo "2123"]
[BlackElo "2168"]
[Annotator "NA RC"]
[PlyCount "118"]
[EventDate "2022.06.25"]
[EventType "swiss"]
[EventCountry "POL"]
[SourceTitle "playchess.com"]
[Source "ChessBase"]
[SourceQuality "1"]
[TimeControl "40/5400+30:1800+30"]

1. e4 {[%emt 0:00:03]} c5 {[%emt 0:04:06]} 2. Nf3 {[%emt 0:00:10]} d6 {[%emt 0:00:09]} 3. d4 {[%emt 0:00:15]} Nf6 {[%emt 0:00:18]} 4. Nc3 {[%emt 0:00:08]} cxd4 {[%emt 0:00:02]} 5. Nxd4 {[%emt 0:00:12]} g6 {[%emt 0:00:05]} 6. Be3 {[%emt 0:00:27]} Bg7 {[%emt 0:00:05]} 7. Be2 {[%emt 0:00:08]} Nc6 {[%emt 0:00:41]} 8. Qd2 {[%emt 0:00:14]} O-O {[%emt 0:00:18]} 9. O-O-O {[%emt 0:00:07]} Ng4 {[%emt 0:00:05]} 10. Bxg4 {[%emt 0:00:12]} Bxg4 {[%emt 0:00:04]} 11. f3 {[%emt 0:00:09]} Be6 {[%emt 0:00:05]} 12. Nxc6 {[%emt 0:01:01]} bxc6 {[%emt 0:00:04]} 13. Bh6 {[%emt 0:00:13]} Qa5 {[%emt 0:00:41]} 14. Bxg7 {[%emt 0:04:06]} Kxg7 {[%emt 0:01:14]} 15. b3 {[%emt 0:03:22]} Rab8 {[%emt 0:16:27]} 16. Kb2 {[%emt 0:04:26]} h5 {[%emt 0:10:25]} 17. f4 {[%emt 0:05:54]} Bd7 {[%emt 0:11:42]} 18. h3 {[%emt 0:17:40]} Rh8 {[%emt 0:08:45]} 19. Rhf1 {[%emt 0:05:16]} f6 {[%emt 0:03:22]} 20. e5 {[%emt 0:05:02]} d5 {[%emt 0:00:16]} 21. Rde1 {[%emt 0:00:39]} Rbe8 {[%emt 0:07:24]} 22. Rf3 {[%emt 0:02:51]} Bf5 {[%emt 0:08:10]} 23. Rfe3 {[%emt 0:02:08]} e6 {[%emt 0:04:07]} 24. exf6+ {[%emt 0:01:15]} Kf7 {[%emt 0:00:03]} 25. Re5 {[%emt 0:07:33]} Qb4 {[%emt 0:04:06]} 26. a3 {[%emt 0:01:17]} Qb7 {[%emt 0:00:18]} 27. Na4 {[%emt 0:01:12]} c5 {[%emt 0:08:38]} 28. Nxc5 {[%emt 0:01:59]} Qc6 {[%emt 0:00:05]} 29. Nd3 {[%emt 0:04:03]} Kxf6 {[%emt 0:03:27]} 30. Nb4 {[%emt 0:01:19]} Qd7 {[%emt 0:00:48]} 31. Qd4 {[%emt 0:10:51]} Kf7 {[%emt 0:00:10]} 32. Nd3 {[%emt 0:01:17]} Qc7 {[%emt 0:02:48]} 33. R5e3 {[%emt 0:05:24]} Rc8 {[%emt 0:00:17]} 34. Ne5+ {[%emt 0:00:37]} Kg8 {[%emt 0:00:01]} 35. Rc1 {[%emt 0:01:15]} Qxc2+ {[%emt 0:02:13]} 36. Rxc2 {[%emt 0:00:11]} Rxc2+ {[%emt 0:00:02]} 37. Ka1 {[%emt 0:01:01]} Rc1+ {[%emt 0:00:06]} 38. Ka2 {[%emt 0:00:05]} Rc2+ {[%emt 0:00:04]} 39. Qb2 {[%emt 0:08:01]} Rxb2+ {[%emt 0:00:04]} 40. Kxb2 {[%emt 0:00:00]} Rh7 {[%emt 0:00:00]} 41. Rc3 {[%emt 0:00:19]} Rb7 {[%emt 0:00:32]} 42. Rc8+ {[%emt 0:00:18]} Kg7 {[%emt 0:02:16]} 43. g4 {[%emt 0:01:34]} Be4 {[%emt 0:01:25]} 44. Rc3 {[%emt 0:06:30]} Kf6 {[%emt 0:02:51]} 45. gxh5 {[%emt 0:08:09]} gxh5 {[%emt 0:00:11]} 46. Rc8 {[%emt 0:00:02]} Rg7 {[%emt 0:06:59]} 47. Rf8+ {[%emt 0:00:22]} Ke7 {[%emt 0:01:45]} 48. Rb8 {[%emt 0:03:09]} d4 {[%emt 0:13:43]} 49. Rc8 {[%emt 0:00:14]} Rg2+ {[%emt 0:00:12]} 50. Kc1 {[%emt 0:00:04]} d3 {[%emt 0:02:09]} 51. Rc7+ {[%emt 0:00:20]} Kd8 {[%emt 0:00:20]} 52. Rxa7 {[%emt 0:02:09]} d2+ {[%emt 0:00:24]} 53. Kd1 {[%emt 0:00:05]} Bd5 {[%emt 0:00:04]} 54. Rd7+ {[%emt 0:01:12]} Kc8 {[%emt 0:00:05]} 55. Rxd5 {[%emt 0:00:04]} exd5 {[%emt 0:00:04]} 56. f5 {[%emt 0:00:36]} Rf2 {[%emt 0:00:15]} 57. Nc6 {[%emt 0:00:15]} Kc7 {[%emt 0:00:28]} 58. Nd4 {[%emt 0:00:06]} Kd6 {[%emt 0:00:13]} 59. b4 {[%emt 0:00:32]} Rf4 {[%emt 0:04:14]} 0-1

[Event "VII Totalizator Sportowy 2022"]
[Site "Bydgoszcz"]
[Date "2022.06.30"]
[Round "6.1"]
[White "Krasenkow, Michal"]
[Black "Heberla, Bartlomiej"]
[Result "1/2-1/2"]
[ECO "D37"]
[WhiteElo "2576"]
[BlackElo "2576"]
[Annotator "TA"]
[PlyCount "38"]
[EventDate "2022.06.25"]
[EventType "swiss"]
[EventCountry "POL"]
[SourceTitle "playchess.com"]
[Source "ChessBase"]
[SourceQuality "1"]
[TimeControl "40/5400+30:1800+30"]

{[%evp 13,38,-2,-4,-10,0,0,0,0,0,-8,-1,-12,0,0,0,0,0,0,0,0,0,14,9,0,0,0,19]} 1. d4 {[%emt 0:00:03]} e6 {[%emt 0:00:42]} 2. c4 {[%emt 0:00:03]} Nf6 {[%emt 0:00:08]} 3. Nf3 {[%emt 0:00:05]} d5 {[%emt 0:00:04]} 4. Nc3 {[%emt 0:00:09]} dxc4 {[%emt 0:00:05]} 5. e3 {[%emt 0:01:03]} a6 {[%emt 0:00:14]} 6. Bxc4 {[%emt 0:00:06]} b5 {[%emt 0:00:07][%cal Bb7b5,Bb5b4][%mdl 32]} 7. Bd3 {[%emt 0:01:43]} Bb7 {[%emt 0:00:50] The position is equal.} 8. Qc2 {[%emt 0:01:36] D26: Queen's Gambit Accepted: 4 e3 e6 5 Bxc5 c5 sidelines.} Nbd7 {[%emt 0:10:44]} 9. a4 {[%emt 0:01:06]} b4 {[%emt 0:01:57] [#] aiming for ...Bxf3.} 10. Ne4 {[%emt 0:00:16]} c5 {[%emt 0:00:40][%cal Ob4b3]} (10... Be7 {looks sharper.} 11. O-O c5 12. Nxc5 Nxc5 13. dxc5 Qd5) 11. Nxf6+ {[%emt 0:04:43]} ({Don't play} 11. Nxc5 Bxc5 12. dxc5 Rc8 $15) 11... Nxf6 {[%emt 0:00:31]} 12. dxc5 {[%emt 0:00:19] [#]} Bxc5 $1 {[%emt 0:16:22]} 13. Qxc5 {[%emt 0:00:34]} Qxd3 {[%emt 0:00:08]} 14. Qxb4 {[%emt 0:00:18]} Rd8 {[%emt 0:20:04][%csl Gd8][%cal Rd3d1]} 15. Bd2 {[%emt 0:00:28]} Ba8 {[%emt 0:19:02]} 16. Rc1 {[%emt 0:11:48] Hoping for Ne5.} Qg6 {[%emt 0:12:46]} 17. Nh4 {[%emt 0:09:49]} ({Not} 17. Rc7 $2 Nd5 18. O-O Nxb4 $19) 17... Qd3 {[%emt 0:00:03] [#]} 18. Nf3 $146 {[%emt 0:13:51] Ne5 is the strong threat.} ({Predecessor:} 18. Rg1 Ne4 19. Nf3 e5 20. Rc7 Qb1+ 21. Bc1 Nd6 22. Ke2 Qf5 23. Rd1 e4 24. Nh4 Qe6 25. h3 O-O 26. b3 {½-½ (56) Chmela,Z (1962)-Bujdak,P (1681) LSS email 2014}) 18... Qg6 {[%emt 0:00:03]} 19. Nh4 {[%emt 0:00:44]} ({Don't blunder} 19. Rc7 $2 Nd5 20. O-O Nxb4 $19) 19... Qd3 {An interesting draw.  Weighted Error Value: White=0.02 (flawless) /Black=0.01 (flawless)} 1/2-1/2

[Event "VII Totalizator Sportowy 2022"]
[Site "Bydgoszcz"]
[Date "2022.06.30"]
[Round "6.2"]
[White "Tomczak, Jacek"]
[Black "Jakubowski, Krzysztof"]
[Result "1/2-1/2"]
[ECO "C80"]
[WhiteElo "2584"]
[BlackElo "2475"]
[Annotator "TA"]
[PlyCount "102"]
[EventDate "2022.06.25"]
[EventType "swiss"]
[EventCountry "POL"]
[SourceTitle "playchess.com"]
[Source "ChessBase"]
[SourceQuality "1"]
[TimeControl "40/5400+30:1800+30"]

{[%evp 22,102,31,24,27,22,25,11,25,20,22,13,15,11,13,15,21,18,16,2,27,27,31,19,29,6,4,18,37,37,66,45,59,43,40,14,15,18,26,21,48,18,18,8,12,8,19,8,8,0,0,0,0,0,0,0,35,0,10,0,0,-8,0,0,0,0,0,0,0,0,0,0,0,0,0,0,0,0,0,0,0,0,0]} 1. e4 {[%emt 0:00:04]} e5 {[%emt 0:00:16]} 2. Nf3 {[%emt 0:00:23]} Nc6 {[%emt 0:00:11]} 3. Bb5 {[%emt 0:00:24]} a6 {[%emt 0:00:14]} 4. Ba4 {[%emt 0:00:15]} Nf6 {[%emt 0:00:15]} 5. O-O {[%emt 0:00:27]} Nxe4 {[%emt 0:00:39]} 6. d4 {[%emt 0:00:43]} b5 {[%emt 0:00:20]} 7. Bb3 {[%emt 0:00:13]} d5 {[%emt 0:00:06]} 8. dxe5 {[%emt 0:00:21]} Be6 {[%emt 0:00:09]} 9. Be3 {[%emt 0:00:32]} Bc5 {[%emt 0:00:19]} 10. Qd3 {[%emt 0:00:31]} O-O {[%emt 0:00:25]} 11. Nc3 {[%emt 0:03:34]} Bxe3 {[%emt 0:04:49]} 12. Qxe3 {[%emt 0:02:20]} Nxc3 {[%emt 0:03:23] C80: Open Ruy Lopez: Sidelines and 9 Nbd2.} 13. Qxc3 {[%emt 0:00:08]} Qd7 {[%emt 0:00:11]} 14. Rad1 {[%emt 0:02:13] [#]} Nd8 $146 {[%emt 0:08:04]} ({Predecessor:} 14... Rad8 15. Nd4 Nxd4 16. Rxd4 f6 17. Re1 c6 18. Qc5 Bf5 19. Rdd1 Rde8 20. exf6 Rxf6 {½-½ (31) Pierrot,J (2400)-Liascovich,L (2473) Buenos Aires 2017}) 15. Qe3 {[%emt 0:13:41]} c6 {[%emt 0:03:06]} 16. c3 {[%emt 0:04:09]} Bg4 {[%emt 0:08:34]} 17. Bc2 {[%emt 0:26:50]} Ne6 {[%emt 0:01:24]} 18. Rde1 {[%emt 0:03:08]} Bxf3 {[%emt 0:23:25]} 19. Qxf3 {[%emt 0:00:04]} g6 {[%emt 0:00:05]} 20. Qg4 {[%emt 0:08:09]} f5 {[%emt 0:00:46]} 21. exf6 $1 {[%emt 0:01:25]} Rxf6 {[%emt 0:02:03]} 22. Re3 {[%emt 0:00:43]} Raf8 {[%emt 0:00:15]} 23. f3 {[%emt 0:11:50]} Qa7 {[%emt 0:22:10]} 24. Rfe1 {[%emt 0:00:08]} Nf4 {[%emt 0:00:05] [#] Strongly threatening ...Re6.} 25. Kh1 {[%emt 0:01:08]} R8f7 {[%emt 0:00:08]} 26. g3 {[%emt 0:02:52]} Nh5 {[%emt 0:00:10][%cal Bf4h5,Bh5g7,Bg7e6][%mdl 32]} 27. Kg2 {[%emt 0:00:31]} Ng7 $1 {[%emt 0:02:45]} 28. Qd4 {[%emt 0:02:29]} (28. f4 {keeps more tension.} a5 29. Re5 a4 30. Bd3) 28... Qxd4 {[%emt 0:01:07]} 29. cxd4 {[%emt 0:00:31]} a5 {[%emt 0:00:08]} 30. h4 {[%emt 0:02:18]} Rc7 {[%emt 0:05:28]} 31. f4 {[%emt 0:03:18]} Kf7 {[%emt 0:00:10]} 32. Kf3 {[%emt 0:00:20]} Ne6 {[%emt 0:00:10]} 33. Rd1 {[%emt 0:00:19]} Ke7 {[%emt 0:00:23]} 34. Re5 {[%emt 0:01:15]} Kd6 {[%emt 0:00:15]} 35. Ke3 {[%emt 0:00:17]} h6 {[%emt 0:05:06]} 36. Re1 {[%emt 0:01:04]} c5 {[%emt 0:08:34]} 37. dxc5+ {[%emt 0:00:19]} Rxc5 {[%emt 0:00:16]} 38. Bd3 {[%emt 0:01:48]} b4 {[%emt 0:00:14][%cal Og6g5]} 39. Kd2 {[%emt 0:05:40]} Nd4 {[%emt 0:01:28] [#] And now ...Nf3+ would win. The position is equal.} 40. R1e3 {[%emt 0:00:00] Against Nf3+} b3 {[%emt 0:00:00]} 41. Bb1 {[%emt 0:13:42]} a4 {[%emt 0:10:46][%cal Og6g5]} 42. a3 {[%emt 0:08:42]} Nc6 {[%emt 0:03:16] Hoping for ...d4.} 43. Re8 {[%emt 0:00:53]} Na5 {[%emt 0:00:05] ...Nc4+ is the strong threat.} 44. Bd3 {[%emt 0:01:30]} Nc4+ {[%emt 0:00:32]} 45. Bxc4 {[%emt 0:00:05]} Rxc4 $11 {[%emt 0:00:05][%mdl 4096] Endgame KRR-KRR} 46. Rc3 {[%emt 0:04:34]} g5 {[%emt 0:08:04]} 47. Rd8+ {[%emt 0:02:35]} Kc5 {[%emt 0:01:26]} 48. Rc8+ {[%emt 0:00:31]} Kb5 $1 {[%emt 0:01:41] White must now prevent ...Rxc8.} 49. Rb8+ {[%emt 0:00:26]} Kc5 {[%emt 0:00:08] aiming for ...Rxc3.} 50. Rc8+ {[%emt 0:00:19]} Kb5 $1 {[%emt 0:00:04] Threatens to win with ...Rxc8.} 51. Rb8+ {[%emt 0:00:05]} Kc5 {[%emt 0:00:04] Weighted Error Value: White=0.07 (flawless) /Black=0.05 (flawless)} 1/2-1/2

[Event "VII Totalizator Sportowy 2022"]
[Site "Bydgoszcz"]
[Date "2022.06.30"]
[Round "6.3"]
[White "Gumularz, Szymon"]
[Black "Kosakowski, Jakub"]
[Result "1/2-1/2"]
[ECO "D85"]
[WhiteElo "2513"]
[BlackElo "2435"]
[Annotator "TA"]
[PlyCount "39"]
[EventDate "2022.06.25"]
[EventType "swiss"]
[EventCountry "POL"]
[SourceTitle "playchess.com"]
[Source "ChessBase"]
[SourceQuality "1"]
[TimeControl "40/5400+30:1800+30"]

{[%evp 19,39,0,5,0,20,9,8,-1,2,7,18,19,32,19,25,36,36,20,5,6,11,0]} 1. d4 Nf6 {[%emt 0:00:25]} 2. c4 {[%emt 0:00:12]} g6 {[%emt 0:00:16]} 3. Nc3 {[%emt 0:00:06]} d5 {[%emt 0:00:22]} 4. cxd5 {[%emt 0:00:24]} Nxd5 5. e4 {[%emt 0:02:07]} Nxc3 {[%emt 0:00:20]} 6. bxc3 {[%emt 0:00:06]} Bg7 {[%emt 0:00:10]} 7. Nf3 {[%emt 0:01:12]} c5 {[%emt 0:00:33]} 8. Bb5+ {[%emt 0:00:36]} Nc6 {[%emt 0:03:19]} 9. O-O {[%emt 0:00:38]} O-O {[%emt 0:00:33]} 10. Bxc6 {[%emt 0:00:35]} bxc6 {[%emt 0:00:15]} 11. Qc2 {[%emt 0:00:31] D85: Exchange Grünfeld: Unusual White 7th moves and lines with 7 Nf3.} Qa5 {[#] Against Ba3} 12. Bd2 $146 {[%emt 0:32:01]} ({Predecessor:} 12. a4 Rd8 13. Ba3 cxd4 14. cxd4 Bg4 15. Bxe7 Re8 16. Bc5 Qd8 17. Ne5 Bxe5 18. dxe5 Rxe5 {1-0 (30) Andreikin,D (2729)-Paravyan,D (2617) Chess.com INT 2022}) 12... Rd8 {[%emt 0:22:28]} 13. Rac1 {[%emt 0:17:38]} Qa3 {[%emt 0:09:00]} 14. Bg5 {[%emt 0:14:41]} cxd4 {[%emt 0:05:19]} 15. cxd4 {[%emt 0:00:52]} h6 {[%emt 0:00:34]} 16. Be3 {[%emt 0:02:01]} ({Not} 16. Qxc6 $2 Bd7 17. Qc5 Qxc5 18. dxc5 hxg5 $19) 16... Ba6 {[%emt 0:13:16]} 17. Rfd1 {[%emt 0:03:59] Inhibits Bd3.} Rac8 {[%emt 0:09:34][%cal Oc6c5]} 18. Qd2 {[%emt 0:13:20]} Kh7 {[%emt 0:02:34][%cal Oe7e5]} 19. Rc3 {[%emt 0:00:17]} Qa5 {[%emt 0:02:43][%cal Oc6c5]} 20. Rb3 {[%emt 0:01:05] Weighted Error Value: White=0.07 (flawless) /Black=0.04 (flawless)} 1/2-1/2